[Event "Open Nuevo Centro. Jornada 2"]
[Site "Chess.com"]
[Date "2020.06.26"]
[Round "8"]
[White "Gracia Calvo, Andrés"]
[Black "Martinez Hernandez, Paula"]
[Result "0-1"]
[WhiteElo "1813"]
[BlackElo "2014"]
[TimeControl "180+2"]
[EndTime "11:57:05 PDT"]
[Termination "Victoria de pauliximartinez por abandono"]

1. d4 {[%clk 0:03:00]} 1... f5 {[%clk 0:02:57.9]} 2. Nf3 {[%clk 0:02:59.8]} 2...
Nf6 {[%clk 0:02:58.2]} 3. Bg5 {[%clk 0:03:00.8]} 3... d6 {[%clk 0:02:57.9]} 4.
e3 {[%clk 0:03:01.5]} 4... g6 {[%clk 0:02:58]} 5. Bd3 {[%clk 0:03:02]} 5... Bg7
{[%clk 0:02:57.9]} 6. Bxf6 {[%clk 0:03:01.6]} 6... Bxf6 {[%clk 0:02:57.9]} 7. e4
{[%clk 0:03:01.9]} 7... fxe4 {[%clk 0:02:58.6]} 8. Bxe4 {[%clk 0:03:02.5]} 8...
c6 {[%clk 0:03:00]} 9. O-O {[%clk 0:03:02.2]} 9... O-O {[%clk 0:03:01]} 10. c3
{[%clk 0:03:01.3]} 10... Bg4 {[%clk 0:03:01.2]} 11. Nbd2 {[%clk 0:03:01.3]}
11... e5 {[%clk 0:02:59.5]} 12. dxe5 {[%clk 0:02:52.5]} 12... Bxe5 {[%clk
0:03:00.1]} 13. Qb3+ {[%clk 0:02:42.8]} 13... Rf7 {[%clk 0:02:57.9]} 14. Nxe5
{[%clk 0:02:34.2]} 14... dxe5 {[%clk 0:02:58.6]} 15. Rad1 {[%clk 0:02:26.1]}
15... Qf6 {[%clk 0:02:55.8]} 16. f3 {[%clk 0:02:24.5]} 16... Be6 {[%clk
0:02:54.6]} 17. Qc2 {[%clk 0:02:22.4]} 17... Na6 {[%clk 0:02:54.2]} 18. b4
{[%clk 0:02:18.1]} 18... Raf8 {[%clk 0:02:53.8]} 19. a4 {[%clk 0:02:05]} 19...
Qg5 {[%clk 0:02:54.2]} 20. Rfe1 {[%clk 0:01:40.2]} 20... h5 {[%clk 0:02:50.6]}
21. Nf1 {[%clk 0:01:39.4]} 21... h4 {[%clk 0:02:51.5]} 22. Ne3 {[%clk
0:01:39.3]} 22... Rxf3 {[%clk 0:02:32.6]} 23. Bxf3 {[%clk 0:01:23.8]} 23... Rxf3
{[%clk 0:02:33]} 24. Qe4 {[%clk 0:01:10.9]} 24... Rf4 {[%clk 0:02:24.9]} 25. Qd3
{[%clk 0:01:00.9]} 25... Nc7 {[%clk 0:02:06.7]} 26. Qd8+ {[%clk 0:00:59.3]}
26... Qxd8 {[%clk 0:02:00.1]} 27. Rxd8+ {[%clk 0:00:59.7]} 27... Kg7 {[%clk
0:01:59.7]} 28. Rf1 {[%clk 0:00:57.5]} 28... Rxf1+ {[%clk 0:01:54.4]} 29. Kxf1
{[%clk 0:00:58.1]} 29... Kf6 {[%clk 0:01:55.3]} 30. Ke2 {[%clk 0:00:57.5]} 30...
g5 {[%clk 0:01:55]} 31. Rb8 {[%clk 0:00:54.3]} 31... Nd5 {[%clk 0:01:51.6]} 32.
Nxd5+ {[%clk 0:00:54.4]} 32... Bxd5 {[%clk 0:01:52.7]} 33. g3 {[%clk 0:00:54.6]}
33... hxg3 {[%clk 0:01:52.7]} 34. hxg3 {[%clk 0:00:55.4]} 34... b5 {[%clk
0:01:53.2]} 35. axb5 {[%clk 0:00:55.7]} 35... cxb5 {[%clk 0:01:54.4]} 36. Rd8
{[%clk 0:00:51.1]} 36... Bc4+ {[%clk 0:01:54.1]} 37. Ke3 {[%clk 0:00:51]} 37...
Kf5 {[%clk 0:01:55.5]} 38. Rg8 {[%clk 0:00:45]} 38... Bxg8 {[%clk 0:01:54.5]}
0

[Event "Open Nuevo Centro. Jornada 2"]
[Site "Chess.com"]
[Date "2020.06.26"]
[Round "8"]
[White "Yeste Campos, Manuel"]
[Black "Vicent Lázaro, Elena"]
[Result "1-0"]
[WhiteElo "919"]
[BlackElo "657"]
[TimeControl "180+2"]
[EndTime "11:57:05 PDT"]
[Termination "Victoria de Manuel_Yeste por tiempo"]

1. e4 {[%clk 0:03:01.9]} 1... e6 {[%clk 0:03:01.9]} 2. d4 {[%clk 0:03:01.6]}
2... c5 {[%clk 0:03:01.6]} 3. d5 {[%clk 0:02:58.3]} 3... Na6 {[%clk 0:03:00.9]}
4. dxe6 {[%clk 0:02:57.7]} 4... fxe6 {[%clk 0:02:59.8]} 5. Nc3 {[%clk
0:02:51.3]} 5... Bd6 {[%clk 0:02:58.7]} 6. Nf3 {[%clk 0:02:49.4]} 6... Bb8
{[%clk 0:02:49.5]} 7. e5 {[%clk 0:02:49.1]} 7... Nh6 {[%clk 0:02:30.6]} 8. Bg5
{[%clk 0:02:48.6]} 8... O-O {[%clk 0:02:25.2]} 9. Bxd8 {[%clk 0:02:48.1]} 9...
Rxd8 {[%clk 0:02:10.9]} 10. Bxa6 {[%clk 0:02:46.8]} 10... bxa6 {[%clk
0:02:09.1]} 11. O-O {[%clk 0:02:47.3]} 11... Nf7 {[%clk 0:01:54.5]} 12. Ne4
{[%clk 0:02:44.5]} 12... Nxe5 {[%clk 0:01:49.6]} 13. Nxe5 {[%clk 0:02:43.2]}
13... Bxe5 {[%clk 0:01:41.8]} 14. Qf3 {[%clk 0:02:37.6]} 14... Bxb2 {[%clk
0:01:37.1]} 15. Rae1 {[%clk 0:02:32.2]} 15... Bb7 {[%clk 0:01:31.1]} 16. Nf6+
{[%clk 0:02:27.2]} 16... gxf6 {[%clk 0:01:30.8]} 17. Qxb7 {[%clk 0:02:27]} 17...
Bc3 {[%clk 0:01:22.1]} 18. Re3 {[%clk 0:02:25.4]} 18... Bd4 {[%clk 0:01:06]} 19.
Rg3+ {[%clk 0:02:22.4]} 19... Kf8 {[%clk 0:01:01.4]} 20. Qf3 {[%clk 0:02:16.1]}
20... Be5 {[%clk 0:00:54]} 21. Re1 {[%clk 0:02:13.8]} 21... Bxg3 {[%clk
0:00:43.8]} 22. Qxg3 {[%clk 0:02:11.8]} 22... Rdb8 {[%clk 0:00:35.1]} 23. Qf3
{[%clk 0:01:55.4]} 23... Rb2 {[%clk 0:00:37]} 24. Qxf6+ {[%clk 0:01:54.8]} 24...
Ke8 {[%clk 0:00:32.5]} 25. Qxb2 {[%clk 0:01:54.4]} 25... Kd8 {[%clk 0:00:30]}
26. Rd1 {[%clk 0:01:52.2]} 26... Kc7 {[%clk 0:00:18.2]} 27. Qe5+ {[%clk
0:01:49]} 1

[Event "Open Nuevo Centro. Jornada 2"]
[Site "Chess.com"]
[Date "2020.06.26"]
[Round "8"]
[White "García Giménez, Santiago"]
[Black "Gerona Maura, Jesus"]
[Result "1-0"]
[WhiteElo "1943"]
[BlackElo "1746"]
[TimeControl "180+2"]
[EndTime "11:57:08 PDT"]
[Termination "Victoria de Somaelfideitos por tiempo"]

1. e4 {[%clk 0:03:01.9]} 1... e5 {[%clk 0:03:00.9]} 2. Nf3 {[%clk 0:03:01.6]}
2... Nc6 {[%clk 0:03:01.7]} 3. Bc4 {[%clk 0:03:01.6]} 3... Nf6 {[%clk
0:03:01.4]} 4. d3 {[%clk 0:02:59.3]} 4... Bc5 {[%clk 0:02:59]} 5. c3 {[%clk
0:03:00.6]} 5... d6 {[%clk 0:02:59.7]} 6. O-O {[%clk 0:03:01.5]} 6... h6 {[%clk
0:03:00.7]} 7. a4 {[%clk 0:03:00.5]} 7... a6 {[%clk 0:03:00.6]} 8. Na3 {[%clk
0:03:01.4]} 8... O-O {[%clk 0:02:59.7]} 9. Nc2 {[%clk 0:03:02.5]} 9... g5 {[%clk
0:02:59.6]} 10. Be3 {[%clk 0:03:02.8]} 10... Ba7 {[%clk 0:02:56.2]} 11. Bxa7
{[%clk 0:03:02.8]} 11... Rxa7 {[%clk 0:02:56.8]} 12. Ne3 {[%clk 0:03:04.5]}
12... Ne7 {[%clk 0:02:56.7]} 13. Qc2 {[%clk 0:03:01.5]} 13... Ng6 {[%clk
0:02:56.9]} 14. d4 {[%clk 0:03:00.3]} 14... g4 {[%clk 0:02:47.5]} 15. Nd2 {[%clk
0:02:59.6]} 15... Nf4 {[%clk 0:02:34.7]} 16. Rad1 {[%clk 0:02:49.1]} 16... Qe7
{[%clk 0:02:05.2]} 17. Rfe1 {[%clk 0:02:45.9]} 17... Kh8 {[%clk 0:01:58.3]} 18.
Nf5 {[%clk 0:02:40.9]} 18... Bxf5 {[%clk 0:01:55.1]} 19. exf5 {[%clk 0:02:40.7]}
19... Rg8 {[%clk 0:01:29.6]} 20. Ne4 {[%clk 0:02:30.6]} 20... b5 {[%clk
0:00:56.5]} 21. axb5 {[%clk 0:02:25.9]} 21... axb5 {[%clk 0:00:57.3]} 22. Bxb5
{[%clk 0:02:26.8]} 22... Nxe4 {[%clk 0:00:44.4]} 23. Qxe4 {[%clk 0:02:24.9]}
23... Qg5 {[%clk 0:00:15.7]} 24. dxe5 {[%clk 0:02:23.7]} 24... Nh3+ {[%clk
0:00:16.2]} 25. gxh3 {[%clk 0:02:17.9]} 25... gxh3+ {[%clk 0:00:16.3]} 26. Kf1
{[%clk 0:02:18.8]} 26... Qg1+ {[%clk 0:00:09.1]} 27. Ke2 {[%clk 0:02:19.7]}
27... Qxh2 {[%clk 0:00:09]} 28. exd6 {[%clk 0:02:20.1]} 28... Ra2 {[%clk
0:00:07.7]} 29. Qd4+ {[%clk 0:02:16.7]} 29... Kh7 {[%clk 0:00:07.6]} 30. Rd2
{[%clk 0:02:08.3]} 30... cxd6 {[%clk 0:00:05.6]} 31. Bd3 {[%clk 0:02:05.4]}
31... Re8+ {[%clk 0:00:04.8]} 32. Be4 {[%clk 0:02:00.6]} 1

[Event "Open Nuevo Centro. Jornada 2"]
[Site "Chess.com"]
[Date "2020.06.26"]
[Round "8"]
[White "Donate Peris, Jose Manuel"]
[Black "Méndez Giménez , Néstor Emmanuel"]
[Result "0-1"]
[WhiteElo "1574"]
[BlackElo "1141"]
[TimeControl "180+2"]
[EndTime "11:57:22 PDT"]
[Termination "Victoria de NestorMendez8 por jaque mate"]

1. d4 {[%clk 0:03:01.9]} 1... e6 {[%clk 0:03:01.9]} 2. e4 {[%clk 0:03:01.5]}
2... c5 {[%clk 0:03:02.2]} 3. d5 {[%clk 0:03:01.2]} 3... exd5 {[%clk 0:03:02.5]}
4. exd5 {[%clk 0:03:01.3]} 4... Nf6 {[%clk 0:03:03]} 5. c4 {[%clk 0:03:01.8]}
5... b6 {[%clk 0:03:00.7]} 6. Nf3 {[%clk 0:02:59.9]} 6... Bb7 {[%clk 0:02:58.2]}
7. Bg5 {[%clk 0:02:57.2]} 7... g6 {[%clk 0:02:57.7]} 8. Nc3 {[%clk 0:02:54.6]}
8... Bg7 {[%clk 0:02:57.2]} 9. Qc2 {[%clk 0:02:52]} 9... O-O {[%clk 0:02:56.5]}
10. Be2 {[%clk 0:02:48.6]} 10... Na6 {[%clk 0:02:53]} 11. a3 {[%clk 0:02:45]}
11... Re8 {[%clk 0:02:46.1]} 12. O-O {[%clk 0:02:43.2]} 12... Qe7 {[%clk
0:02:44.4]} 13. Rad1 {[%clk 0:02:29.4]} 13... Qd6 {[%clk 0:02:30.8]} 14. h3
{[%clk 0:02:19.7]} 14... h6 {[%clk 0:02:29.1]} 15. Nb5 {[%clk 0:02:17.7]} 15...
Qe7 {[%clk 0:02:20.5]} 16. Be3 {[%clk 0:02:14]} 16... Nh5 {[%clk 0:02:06.5]} 17.
Qc1 {[%clk 0:02:04.8]} 17... Ng3 {[%clk 0:01:52.1]} 18. Bd3 {[%clk 0:01:57.7]}
18... Nxf1 {[%clk 0:01:51.4]} 19. Kxf1 {[%clk 0:01:53.4]} 19... Rac8 {[%clk
0:01:50.5]} 20. Bxh6 {[%clk 0:01:51.8]} 20... Bxh6 {[%clk 0:01:49.8]} 21. Qxh6
{[%clk 0:01:51.1]} 21... Nc7 {[%clk 0:01:43.6]} 22. d6 {[%clk 0:01:49.6]} 22...
Qe6 {[%clk 0:01:37.4]} 23. Nxc7 {[%clk 0:01:45.7]} 23... Rxc7 {[%clk 0:01:38.2]}
24. dxc7 {[%clk 0:01:45.6]} 24... Bxf3 {[%clk 0:01:38.2]} 25. gxf3 {[%clk
0:01:42.3]} 25... Qc6 {[%clk 0:01:23.6]} 26. Be4 {[%clk 0:01:30.6]} 26... Qxc7
{[%clk 0:01:17.3]} 27. h4 {[%clk 0:01:31.1]} 27... Qh2 {[%clk 0:01:11.1]} 28.
Qg5 {[%clk 0:01:31.2]} 28... Qh1+ {[%clk 0:01:05.7]} 29. Qg1 {[%clk 0:01:29.7]}
29... Qxh4 {[%clk 0:01:06]} 30. Rxd7 {[%clk 0:01:28.7]} 30... Qh3+ {[%clk
0:00:51.6]} 31. Qg2 {[%clk 0:01:15.5]} 31... Qxd7 {[%clk 0:00:49.9]} 32. Bxg6
{[%clk 0:01:10.3]} 32... Qd1# {[%clk 0:00:46.9]} 0

[Event "Open Nuevo Centro. Jornada 2"]
[Site "Chess.com"]
[Date "2020.06.26"]
[Round "8"]
[White "Gutierrez Marco, Dario"]
[Black "Zamora Soler, Raul"]
[Result "0-1"]
[WhiteElo "1899"]
[BlackElo "1800"]
[TimeControl "180+2"]
[EndTime "11:57:50 PDT"]
[Termination "Victoria de rzamora80 por abandono"]

1. e4 {[%clk 0:03:01.9]} 1... c5 {[%clk 0:03:00.6]} 2. Nc3 {[%clk 0:03:00.7]}
2... Nc6 {[%clk 0:03:00.8]} 3. Bb5 {[%clk 0:03:00.9]} 3... e6 {[%clk 0:03:01.4]}
4. Bxc6 {[%clk 0:03:01.5]} 4... bxc6 {[%clk 0:03:02.2]} 5. f4 {[%clk 0:03:02.7]}
5... d5 {[%clk 0:03:03]} 6. d3 {[%clk 0:03:04]} 6... dxe4 {[%clk 0:03:03.1]} 7.
Nxe4 {[%clk 0:03:04.8]} 7... Nf6 {[%clk 0:03:04]} 8. Nc3 {[%clk 0:02:59.7]} 8...
Nd5 {[%clk 0:03:04]} 9. Ne4 {[%clk 0:02:59.8]} 9... Be7 {[%clk 0:03:00.2]} 10.
Nf3 {[%clk 0:02:56.1]} 10... O-O {[%clk 0:02:59.9]} 11. O-O {[%clk 0:02:56.5]}
11... a5 {[%clk 0:02:55.9]} 12. a3 {[%clk 0:02:56.3]} 12... Ba6 {[%clk
0:02:55.7]} 13. Ne5 {[%clk 0:02:43.8]} 13... Rc8 {[%clk 0:02:49.2]} 14. f5
{[%clk 0:02:30.6]} 14... f6 {[%clk 0:02:21.4]} 15. Ng4 {[%clk 0:02:21.8]} 15...
exf5 {[%clk 0:02:20]} 16. Rxf5 {[%clk 0:02:21.6]} 16... g6 {[%clk 0:02:20.5]}
17. Rf1 {[%clk 0:02:14]} 17... f5 {[%clk 0:02:17.3]} 18. Bh6 {[%clk 0:02:14.9]}
18... Rf7 {[%clk 0:02:06.9]} 19. Ne5 {[%clk 0:02:13.9]} 19... Rg7 {[%clk
0:01:59.7]} 20. Bxg7 {[%clk 0:02:09.8]} 20... Kxg7 {[%clk 0:02:00.5]} 21. Ng3
{[%clk 0:01:53.6]} 21... Ne3 {[%clk 0:02:00.1]} 22. Qf3 {[%clk 0:01:46.4]} 22...
Nxf1 {[%clk 0:01:58]} 23. Rxf1 {[%clk 0:01:48.3]} 23... Qd4+ {[%clk 0:01:57.8]}
24. Kh1 {[%clk 0:01:41.3]} 24... Qxe5 {[%clk 0:01:58.6]} 25. Ne2 {[%clk
0:01:39.6]} 25... Qxb2 {[%clk 0:01:45.8]} 26. Nf4 {[%clk 0:01:22.3]} 26... Qf6
{[%clk 0:01:27.3]} 27. Qg3 {[%clk 0:01:19.7]} 27... Kg8 {[%clk 0:01:09.4]} 28.
Re1 {[%clk 0:01:07.3]} 28... Bd6 {[%clk 0:01:09.8]} 29. Qf3 {[%clk 0:00:56.5]}
29... Bxf4 {[%clk 0:01:09.7]} 30. Qxf4 {[%clk 0:00:58.4]} 30... g5 {[%clk
0:00:58.6]} 31. Qd2 {[%clk 0:00:57]} 31... a4 {[%clk 0:00:53.1]} 32. Qa5 {[%clk
0:00:57.2]} 32... Bb5 {[%clk 0:00:53.8]} 33. Qd2 {[%clk 0:00:54.1]} 33... c4
{[%clk 0:00:49.8]} 34. dxc4 {[%clk 0:00:51.9]} 34... Bxc4 {[%clk 0:00:50.8]} 35.
Qd7 {[%clk 0:00:52.8]} 35... Rf8 {[%clk 0:00:51.2]} 36. Qd6 {[%clk 0:00:51.4]}
36... Qxd6 {[%clk 0:00:51.5]} 0

[Event "Open Nuevo Centro. Jornada 2"]
[Site "Chess.com"]
[Date "2020.06.26"]
[Round "8"]
[White "Remolar Gallen, Jose"]
[Black "García Oviedo, Alejandro"]
[Result "1-0"]
[WhiteElo "2350"]
[BlackElo "1894"]
[TimeControl "180+2"]
[EndTime "11:57:55 PDT"]
[Termination "Victoria de ChessMonguer por jaque mate"]

1. d4 {[%clk 0:03:01.9]} 1... d5 {[%clk 0:02:59.2]} 2. c4 {[%clk 0:02:59.1]}
2... Nf6 {[%clk 0:03:00.5]} 3. cxd5 {[%clk 0:02:57.4]} 3... Nxd5 {[%clk
0:03:01.8]} 4. e4 {[%clk 0:02:58.5]} 4... Nb6 {[%clk 0:03:03.5]} 5. Nc3 {[%clk
0:03:00]} 5... g6 {[%clk 0:02:59.6]} 6. Be3 {[%clk 0:02:57.3]} 6... Bg7 {[%clk
0:03:00.8]} 7. Rc1 {[%clk 0:02:58.4]} 7... O-O {[%clk 0:02:58.9]} 8. Be2 {[%clk
0:02:46.5]} 8... Nc6 {[%clk 0:02:55.7]} 9. Nf3 {[%clk 0:02:46.4]} 9... Bg4
{[%clk 0:02:56.7]} 10. d5 {[%clk 0:02:47]} 10... Bxf3 {[%clk 0:02:57.5]} 11.
gxf3 {[%clk 0:02:47.9]} 11... Ne5 {[%clk 0:02:53.4]} 12. Bd4 {[%clk 0:02:45.3]}
12... c6 {[%clk 0:02:45.2]} 13. f4 {[%clk 0:02:43.4]} 13... Nec4 {[%clk
0:02:37.1]} 14. Bxg7 {[%clk 0:02:44.6]} 14... Kxg7 {[%clk 0:02:35.5]} 15. Bxc4
{[%clk 0:02:46]} 15... Nxc4 {[%clk 0:02:36.4]} 16. Qd4+ {[%clk 0:02:47.4]} 16...
e5 {[%clk 0:02:37.4]} 17. Qxc4 {[%clk 0:02:47.4]} 17... exf4 {[%clk 0:02:38.6]}
18. Rd1 {[%clk 0:02:06.2]} 18... Qg5 {[%clk 0:02:28.6]} 19. d6 {[%clk
0:02:01.4]} 19... Rad8 {[%clk 0:02:21.2]} 20. Qd4+ {[%clk 0:01:51]} 20... Kg8
{[%clk 0:02:07.9]} 21. Kd2 {[%clk 0:01:51.2]} 21... c5 {[%clk 0:01:32.1]} 22.
Qd5 {[%clk 0:01:43.5]} 22... Qg2 {[%clk 0:01:31.4]} 23. Kc1 {[%clk 0:01:41.8]}
23... Qxf2 {[%clk 0:01:29.6]} 24. e5 {[%clk 0:01:41]} 24... Rfe8 {[%clk
0:01:27.4]} 25. Ne4 {[%clk 0:01:40.5]} 25... Qe3+ {[%clk 0:01:25.7]} 26. Kb1
{[%clk 0:01:41.1]} 26... Kg7 {[%clk 0:01:22]} 27. Rhe1 {[%clk 0:01:39.8]} 27...
Qh3 {[%clk 0:01:19.8]} 28. Nxc5 {[%clk 0:01:38.1]} 28... b6 {[%clk 0:01:14]} 29.
Nd3 {[%clk 0:01:24.8]} 29... Qxh2 {[%clk 0:01:06.5]} 30. Rh1 {[%clk 0:01:13.3]}
30... Qe2 {[%clk 0:01:02.7]} 31. Rxh7+ {[%clk 0:01:06]} 31... Kxh7 {[%clk
0:01:01.2]} 32. Qxf7+ {[%clk 0:01:06.8]} 32... Kh6 {[%clk 0:01:00.9]} 33. Rh1+
{[%clk 0:01:06.1]} 33... Qh5 {[%clk 0:01:01.3]} 34. Qxf4+ {[%clk 0:01:04.9]}
34... Kg7 {[%clk 0:00:57.3]} 35. Rxh5 {[%clk 0:01:04.9]} 35... gxh5 {[%clk
0:00:59.2]} 36. Qg5+ {[%clk 0:01:02.7]} 36... Kf7 {[%clk 0:00:58.6]} 37. Nf4
{[%clk 0:01:01.4]} 37... Rg8 {[%clk 0:00:55.7]} 38. Qf6+ {[%clk 0:01:02.3]}
38... Ke8 {[%clk 0:00:55.8]} 39. Qe7# {[%clk 0:01:04.2]} 1

[Event "Open Nuevo Centro. Jornada 2"]
[Site "Chess.com"]
[Date "2020.06.26"]
[Round "8"]
[White "Martínez Albelda, Mariela"]
[Black "Valverde Alcaide, Miguel Alejandro"]
[Result "1-0"]
[WhiteElo "1005"]
[BlackElo "858"]
[TimeControl "180+2"]
[EndTime "11:57:55 PDT"]
[Termination "Victoria de laranita303 por jaque mate"]

1. d4 {[%clk 0:03:01.9]} 1... d5 {[%clk 0:03:00]} 2. Nc3 {[%clk 0:03:01.8]} 2...
Nf6 {[%clk 0:02:54.2]} 3. Bf4 {[%clk 0:03:02.6]} 3... Bd7 {[%clk 0:02:48.7]} 4.
f3 {[%clk 0:02:59.9]} 4... h6 {[%clk 0:02:40.7]} 5. e4 {[%clk 0:02:58.8]} 5...
dxe4 {[%clk 0:02:40]} 6. fxe4 {[%clk 0:02:59]} 6... e6 {[%clk 0:02:32.2]} 7. Nb5
{[%clk 0:02:58.6]} 7... Bxb5 {[%clk 0:02:28.2]} 8. Bxb5+ {[%clk 0:02:57.9]} 8...
c6 {[%clk 0:02:29.2]} 9. Bc4 {[%clk 0:02:58]} 9... Nbd7 {[%clk 0:02:21.1]} 10.
e5 {[%clk 0:02:57.8]} 10... Nd5 {[%clk 0:02:18.6]} 11. Bxd5 {[%clk 0:02:58.1]}
11... exd5 {[%clk 0:02:19.3]} 12. Nf3 {[%clk 0:02:57.6]} 12... Bb4+ {[%clk
0:02:13]} 13. c3 {[%clk 0:02:57.3]} 13... Ba5 {[%clk 0:02:10.2]} 14. b4 {[%clk
0:02:56.3]} 14... Bb6 {[%clk 0:02:07.8]} 15. Qa4 {[%clk 0:02:56.7]} 15... O-O
{[%clk 0:02:02.2]} 16. O-O {[%clk 0:02:56.6]} 16... g5 {[%clk 0:01:59.2]} 17.
Bg3 {[%clk 0:02:55.8]} 17... g4 {[%clk 0:01:57.2]} 18. Nh4 {[%clk 0:02:54.5]}
18... Qg5 {[%clk 0:01:49.7]} 19. Rf5 {[%clk 0:02:46.2]} 19... Qe3+ {[%clk
0:01:47.6]} 20. Bf2 {[%clk 0:02:40.2]} 20... Qxc3 {[%clk 0:01:48.1]} 21. Rd1
{[%clk 0:02:28.6]} 21... a6 {[%clk 0:01:21.4]} 22. Be1 {[%clk 0:02:19]} 22...
Qe3+ {[%clk 0:01:16.8]} 23. Bf2 {[%clk 0:02:04.9]} 23... Qc3 {[%clk 0:01:16.9]}
24. Qb3 {[%clk 0:01:57.1]} 24... Qxb3 {[%clk 0:01:13.1]} 25. axb3 {[%clk
0:01:57.9]} 25... c5 {[%clk 0:01:05.2]} 26. dxc5 {[%clk 0:01:57.3]} 26... Bxc5
{[%clk 0:01:04.2]} 27. bxc5 {[%clk 0:01:58]} 27... Nxc5 {[%clk 0:01:05.2]} 28.
Bxc5 {[%clk 0:01:57.7]} 28... Rfd8 {[%clk 0:00:58.9]} 29. Be7 {[%clk 0:01:53.4]}
29... Rd7 {[%clk 0:00:54.1]} 30. Bf6 {[%clk 0:01:46]} 30... b5 {[%clk
0:00:49.9]} 31. Rd2 {[%clk 0:01:40.8]} 31... d4 {[%clk 0:00:48.7]} 32. Rf1
{[%clk 0:01:40.7]} 32... d3 {[%clk 0:00:45.4]} 33. Rfd1 {[%clk 0:01:40.3]} 33...
Rc8 {[%clk 0:00:26.3]} 34. Rxd3 {[%clk 0:01:39.4]} 34... Rxd3 {[%clk 0:00:24.2]}
35. Rxd3 {[%clk 0:01:39.2]} 35... Rc1+ {[%clk 0:00:24.8]} 36. Kf2 {[%clk
0:01:39.7]} 36... Rc2+ {[%clk 0:00:24.7]} 37. Kg3 {[%clk 0:01:39.4]} 37... b4
{[%clk 0:00:21.4]} 38. Rd8+ {[%clk 0:01:37.6]} 38... Kh7 {[%clk 0:00:21.2]} 39.
Rh8# {[%clk 0:01:36.2]} 1

[Event "Open Nuevo Centro. Jornada 2"]
[Site "Chess.com"]
[Date "2020.06.26"]
[Round "8"]
[White "URSARIU, NIKOLAS VICTOR"]
[Black "Perrot, Fabien "]
[Result "1-0"]
[WhiteElo "932"]
[BlackElo "989"]
[TimeControl "180+2"]
[EndTime "11:57:57 PDT"]
[Termination "Victoria de NikolasVictor por tiempo"]

1. e4 {[%clk 0:02:54]} 1... e5 {[%clk 0:02:56]} 2. Nf3 {[%clk 0:02:55]} 2... Nc6
{[%clk 0:02:56.3]} 3. Nc3 {[%clk 0:02:55.3]} 3... Nf6 {[%clk 0:02:56.3]} 4. d4
{[%clk 0:02:55.8]} 4... exd4 {[%clk 0:02:54.9]} 5. Nxd4 {[%clk 0:02:57.7]} 5...
Bb4 {[%clk 0:02:50.4]} 6. Nxc6 {[%clk 0:02:57.8]} 6... bxc6 {[%clk 0:02:49.1]}
7. Bd3 {[%clk 0:02:56.7]} 7... Bxc3+ {[%clk 0:02:38.5]} 8. bxc3 {[%clk
0:02:54.9]} 8... O-O {[%clk 0:02:31.3]} 9. O-O {[%clk 0:02:53.1]} 9... Re8
{[%clk 0:02:31.1]} 10. Bg5 {[%clk 0:02:50.7]} 10... h6 {[%clk 0:02:30.4]} 11.
Bh4 {[%clk 0:02:49.5]} 11... g5 {[%clk 0:02:25.5]} 12. Bg3 {[%clk 0:02:46.5]}
12... d5 {[%clk 0:02:20.7]} 13. e5 {[%clk 0:02:41.9]} 13... Nd7 {[%clk 0:02:10]}
14. Re1 {[%clk 0:02:39.8]} 14... Nc5 {[%clk 0:01:58.9]} 15. Rb1 {[%clk 0:02:15]}
15... Na4 {[%clk 0:01:38.8]} 16. Qd2 {[%clk 0:02:11.1]} 16... Be6 {[%clk
0:01:10.9]} 17. Rb4 {[%clk 0:02:05.8]} 17... Nb6 {[%clk 0:01:03.6]} 18. a4
{[%clk 0:01:58.1]} 18... Nc4 {[%clk 0:01:02.5]} 19. Bxc4 {[%clk 0:01:55.9]}
19... dxc4 {[%clk 0:01:02.4]} 20. Qxd8 {[%clk 0:01:57.8]} 20... Rexd8 {[%clk
0:00:48.2]} 21. h3 {[%clk 0:01:48.9]} 21... Rab8 {[%clk 0:00:33.5]} 22. f4
{[%clk 0:01:37.9]} 22... a5 {[%clk 0:00:18.4]} 23. Rbb1 {[%clk 0:01:32]} 23...
Rxb1 {[%clk 0:00:13.5]} 24. Rxb1 {[%clk 0:01:30.6]} 24... Rd2 {[%clk 0:00:14.9]}
25. Rb8+ {[%clk 0:01:28.4]} 25... Kg7 {[%clk 0:00:13.4]} 26. Rb2 {[%clk
0:01:22.3]} 26... Bf5 {[%clk 0:00:12]} 27. Rb7 {[%clk 0:01:12.6]} 27... Rxc2
{[%clk 0:00:06.9]} 28. Rxc7 {[%clk 0:01:13.2]} 28... Be4 {[%clk 0:00:07.3]} 29.
e6 {[%clk 0:01:08.3]} 29... Rxg2+ {[%clk 0:00:03]} 30. Kf1 {[%clk 0:01:06]} 1